bitfinex-derivatives/quotes_ETHF0:USTF0_20260204
["timestamp","ask_amount","ask_price","bid_price","bid_amount"]
[1770226813202,5.27597776,2097.2,2095.1,0.00431201]
[1770226813404,5.27597776,2097.2,2095.6,2.83743437]
[1770226813602,5.27990056,2097.2,2095.8,4.95485413]
[1770226813907,5.27990056,2097.2,2095.6,4.95485413]
[1770226814201,5.27597776,2096.5,2095.1,0.00431201]
[1770226814406,5.27597776,2096.3,2095.1,0.00431201]
[1770226814605,5.27597776,2096.3,2095.2,2.83743437]
[1770226814805,5.27597776,2096.3,2095.1,4.95916614]
[1770226815002,5.27597776,2096.3,2095.2,2.83743437]
[1770226815203,5.27597776,2096.3,2095.1,0.00431201]
[1770226816007,5.27597776,2096.3,2095.4,2.83743437]
[1770226816306,5.75297776,2096.4,2095.1,0.00431201]
[1770226816698,5.75297776,2096.4,2093.2,1.10099]
[1770226816699,5.27597776,2096.0,2094.3,4.95485413]
[1770226817108,0.18224238,2095.9,2095.2,2.83743437]
[1770226817300,0.18224238,2095.9,2095.1,4.95485413]
[1770226817498,0.18224238,2095.9,2094.9,4.95485413]
[1770226817703,5.64033207,2096.2,2094.9,0.00383783]
[1770226817906,5.27597776,2096.2,2094.9,0.00383783]
[1770226818102,5.27597776,2096.2,2094.9,2.8412722]
[1770226818298,5.27597776,2096.2,2094.9,0.00383783]
[1770226818707,5.27597776,2096.2,2095.0,2.83743437]
[1770226818900,5.27597776,2096.2,2095.0,4.95485413]
[1770226819099,5.27597776,2096.2,2094.9,0.00383783]
[1770226819500,5.27597776,2096.2,2094.2,4.95485413]
[1770226819701,5.27597776,2096.2,2094.3,2.83743437]
[1770226819901,5.27597776,2096.0,2093.5,0.23931]
[1770226820104,5.27597776,2095.4,2093.2,4.95485413]
[1770226820302,5.27597776,2095.2,2093.2,4.95485413]
[1770226820701,5.27597776,2095.2,2092.8,4.95485413]
[1770226820702,5.27597776,2095.0,2092.8,4.95485413]
[1770226820898,5.27597776,2095.0,2092.9,4.95485413]
[1770226821108,5.27597776,2094.8,2092.9,4.95485413]
[1770226821310,4.37632372,2094.9,2093.0,6.05594413]
[1770226821311,5.27597776,2094.6,2093.0,6.05594413]
[1770226821606,0.54738009,2094.7,2093.8,6.29479413]
[1770226821908,0.00570943,2095.4,2094.4,4.95485413]
[1770226822108,0.00570943,2095.4,2094.7,4.95485413]
[1770226822304,5.27597776,2096.4,2095.0,4.95485413]
[1770226822504,5.27597776,2097.2,2095.5,4.95485413]
[1770226822705,5.27597776,2097.2,2095.1,5.43185413]
[1770226823008,6.61396776,2096.9,2094.7,4.96006725]
[1770226823210,5.27597776,2096.7,2094.8,4.95485413]
[1770226823414,5.27963291,2096.7,2094.9,4.95485413]
[1770226823613,5.27963291,2096.7,2095.1,2.83742494]
[1770226823814,5.27963291,2096.7,2094.9,0.95485413]
[1770226824015,6.43746057,2096.6,2095.4,2.83742494]
[1770226824216,6.43746057,2096.6,2095.8,2.83742494]
[1770226824413,6.43746057,2096.6,2095.3,2.83742494]
[1770226824807,6.43746057,2096.6,2094.7,0.00521312]
[1770226825214,6.43746057,2096.6,2095.0,2.83742494]
[1770226825412,7.77564057,2096.6,2094.7,0.00521312]
[1770226825617,5.96046057,2096.5,2094.7,0.00521312]
[1770226825912,6.19943057,2096.5,2094.7,0.00521312]
[1770226826113,5.96046057,2096.3,2094.7,0.00521312]
[1770226826714,5.96046057,2096.3,2095.0,6.14126599]
[1770226827018,5.96411572,2096.7,2095.4,2.83742494]
[1770226827215,5.96046057,2096.0,2094.7,0.00521312]
[1770226827513,6.43746057,2095.9,2094.7,0.00521312]
[1770226828311,6.43746057,2095.9,2094.7,5.90734911]
[1770226828618,0.477,2095.9,2094.9,5.90213599]
[1770226828820,5.96046057,2096.3,2095.0,6.14126599]
[1770226829415,5.96046057,2096.3,2095.1,7.00213599]
[1770226829621,5.96046057,2096.3,2095.3,0.2391]
[1770226829922,5.96411572,2096.7,2094.9,5.90213599]
[1770226830222,7.05989057,2096.2,2094.7,0.00521312]
[1770226830514,5.96046057,2095.9,2094.7,0.00521312]
[1770226830719,5.96046057,2095.7,2094.0,0.23925]
[1770226830915,5.96046057,2095.7,2093.6,0.477]
[1770226830916,7.06017057,2095.7,2093.6,0.2393]
[1770226831120,6.19955057,2095.4,2093.6,0.2393]
[1770226831516,5.96046057,2095.4,2094.0,0.23924]
[1770226831717,5.96046057,2095.4,2094.1,0.23924]
[1770226831914,6.43746057,2095.4,2094.1,0.23924]
[1770226832217,5.96046057,2095.0,2093.3,0.23933]
[1770226832417,5.96046057,2095.0,2093.8,0.23927]
[1770226832623,6.14287704,2094.9,2093.8,0.23927]
[1770226832824,6.14287704,2094.9,2093.3,0.23933]
[1770226833518,6.14287704,2094.9,2093.8,0.23927]
[1770226834221,6.14287704,2094.9,2093.9,7.00275599]
[1770226834222,0.18241647,2094.9,2093.9,7.00275599]
[1770226834421,0.18241647,2094.9,2094.3,0.23921]
[1770226834624,0.18241647,2094.9,2093.9,5.90213599]
[1770226834822,0.18241647,2094.9,2093.7,0.23928]
[1770226835125,0.18241647,2094.9,2093.8,5.90213599]
[1770226835527,0.18241647,2094.9,2093.8,6.14140599]
[1770226836425,6.43746057,2095.6,2094.1,5.90213599]
[1770226836629,6.43746057,2095.6,2094.4,5.90213599]
[1770226837129,0.477,2095.6,2094.4,5.90213599]
[1770226837327,6.67653057,2095.6,2093.8,6.14140599]
[1770226837526,6.68042232,2095.6,2093.9,6.2909044]
[1770226837730,6.44135232,2095.6,2094.2,6.14136599]
[1770226838028,6.44135232,2095.6,2094.3,6.2908096]
[1770226838226,6.03087071,2102.2,2100.9,1.09697]
[1770226838425,6.34023696,2101.8,2100.7,0.02511749]
[1770226838730,6.34023696,2103.2,2101.7,0.50111749]
[1770226839025,6.34023696,2103.1,2102.7,4.24036216]
[1770226839231,6.34023696,2104.3,2103.1,1.59235751]
[1770226839427,6.34023696,2104.3,2103.5,3.97008096]
[1770226839626,1.09407,2106.5,2104.1,3.52008096]
[1770226839828,4.43818,2106.3,2104.1,3.52008096]
[1770226840027,5.2228,2106.0,2103.7,4.24036216]
[1770226840226,1.09444,2105.8,2103.7,0.00550065]
[1770226840426,1.09975525,2106.0,2102.8,1.09596]
[1770226840427,1.09477,2105.2,2102.8,1.09596]
[1770226840632,1.09493,2104.8,2102.6,1.57307]
[1770226840828,6.23800572,2104.7,2103.1,1.0958]
[1770226841130,6.33473631,2105.1,2102.9,1.09592]
[1770226841131,6.23800572,2104.6,2102.9,1.09592]
[1770226841332,6.23800572,2104.0,2102.5,0.06778491]
[1770226841525,6.23800572,2103.8,2102.5,0.00186046]
[1770226841727,6.23800572,2103.7,2102.5,0.00186046]
[1770226841924,12.57274203,2103.7,2102.5,0.00186046]
[1770226842130,6.23800572,2103.6,2102.5,0.00186046]
[1770226842328,6.23800572,2103.4,2102.5,0.00186046]
[1770226842531,0.477,2103.3,2102.5,0.00186046]
[1770226842731,12.03453631,2103.3,2102.5,0.00186046]
[1770226843031,0.477,2103.3,2102.5,0.00186046]
[1770226843231,6.33473631,2103.2,2102.5,0.00186046]
[1770226843428,9.8e-07,2104.0,2103.8,1.09544]
[1770226843728,0.477,2105.2,2103.6,3.14038373]
[1770226843926,6.20306174,2105.1,2103.6,3.14038373]
[1770226844124,6.20306174,2105.0,2103.2,3.14038373]
[1770226844326,6.20306174,2104.8,2103.2,1.09572]
[1770226844528,6.20306174,2104.6,2103.0,1.09585]
[1770226844932,6.33473631,2104.5,2103.0,1.09585]
[1770226845127,6.12272963,2104.4,2102.8,3.14038373]
[1770226845326,6.12272963,2104.3,2102.5,1.09796046]
[1770226845530,6.12272963,2104.2,2102.9,1.0959]
[1770226845930,6.33473631,2104.1,2102.9,1.0959]
[1770226846126,6.33473631,2104.2,2102.9,1.0959]
[1770226846330,6.33473631,2104.1,2103.1,1.09581]
[1770226846531,12.3617086,2104.5,2103.1,1.09581]
[1770226846834,6.33473631,2104.5,2103.7,1.09548]
[1770226847036,6.02697229,2105.4,2104.7,1.09496]
[1770226847234,6.02901657,2106.0,2104.5,1.09504]
[1770226847433,6.02901657,2105.8,2104.4,1.09514]
[1770226847936,1.0939,2106.8,2104.0,3.49256263]
[1770226847937,7.7732536,2107.3,2105.5,1.09456]
[1770226848134,7.77789942,2107.3,2105.5,0.00386225]
[1770226848329,7.7732536,2106.8,2105.5,0.00386225]
[1770226848536,7.7732536,2106.6,2105.5,0.00386225]
[1770226848733,7.75000342,2106.4,2104.6,1.09504]
[1770226848934,7.75000342,2106.4,2104.2,0.04650035]
[1770226849133,7.75000342,2106.2,2104.2,0.04650035]
[1770226849432,7.75000342,2106.2,2104.3,4.3331331]
[1770226849629,7.75000342,2106.0,2104.6,1.09504]
[1770226849831,7.75000342,2106.0,2104.7,1.33301]
[1770226850035,7.75000342,2106.0,2104.6,1.10031979]
[1770226850036,5.83261631,2105.9,2104.6,0.00527979]
[1770226850334,7.75000342,2105.8,2104.6,0.00527979]
[1770226850533,7.7544953,2105.8,2104.6,0.00527979]
[1770226850734,5.83261631,2105.7,2104.6,0.00527979]
[1770226850929,13.51435449,2105.7,2104.6,0.00527979]
[1770226851135,7.68173818,2105.6,2104.6,0.00527979]
[1770226851330,7.68173818,2105.6,2104.0,0.23811]
[1770226851331,7.68173818,2105.4,2104.0,0.23811]
[1770226851630,7.68173818,2105.4,2104.1,4.68416845]
[1770226851835,5.82733652,2105.3,2104.3,1.09518]
[1770226852036,5.82733652,2105.3,2104.4,0.23807]
[1770226852337,5.82733652,2105.3,2104.4,0.24041796]
[1770226852932,7.68173818,2105.4,2104.4,0.24041796]
[1770226853233,5.82733652,2105.3,2104.4,1.33554796]
[1770226853535,13.39547922,2105.7,2104.5,1.09504]
[1770226853833,7.56864612,2105.6,2104.7,0.23803]
[1770226854031,7.56864612,2105.6,2104.4,0.00234796]
[1770226854234,13.39598264,2105.5,2104.4,0.00234796]
[1770226854433,5.82733652,2105.7,2104.9,1.09483]
[1770226854634,5.82733652,2105.7,2105.0,0.238]
[1770226854833,5.82733652,2105.7,2104.6,1.09502]
[1770226855135,5.82733652,2105.7,2104.8,0.23802]
[1770226855329,5.82733652,2105.7,2104.7,1.09497]
[1770226855534,5.82733652,2105.6,2104.7,3.27178808]
[1770226855835,5.82733652,2105.6,2104.5,0.23805]
[1770226856237,7.43291229,2105.5,2104.5,0.23805]
[1770226856439,7.43291229,2105.5,2104.4,0.00234796]
[1770226856637,5.82733652,2105.4,2104.6,1.09504]
[1770226856833,13.26413894,2105.7,2104.5,1.09508]
[1770226857032,13.26413894,2105.7,2105.0,0.238]
[1770226857237,5.82733652,2105.6,2105.0,0.238]
[1770226857436,5.82733652,2105.6,2104.5,0.23805]
[1770226857731,7.91280242,2105.5,2104.4,0.24041796]
[1770226857937,0.476,2105.4,2104.5,0.23805]
[1770226858133,5.82733652,2105.4,2104.4,0.00234796]
[1770226858332,5.82733652,2105.4,2104.5,0.23806]
[1770226858531,5.82733652,2105.4,2104.6,0.23805]
[1770226858737,5.82733652,2105.4,2104.8,0.23802]
[1770226859132,5.35134652,2105.4,2105.0,0.238]
[1770226859734,0.00062963,2105.8,2105.3,0.23796]
[1770226860034,12.15372019,2105.7,2105.3,0.23796]
[1770226860242,7.45028367,2105.6,2104.7,3.30563788]
[1770226860440,7.45028367,2105.6,2104.8,0.23802]
[1770226860741,4.70343652,2105.5,2104.8,0.23802]
[1770226861434,7.44600512,2107.4,2106.5,1.09405]
[1770226861734,4.22604652,2107.3,2106.3,1.09415]
[1770226861938,4.22604652,2107.3,2106.1,1.09426]
[1770226861939,0.475,2107.6,2106.1,1.09426]
[1770226862133,4.22604652,2108.0,2106.4,0.23784]
[1770226862334,4.22604652,2108.0,2107.1,0.23776]
[1770226862532,2.12428122,2108.0,2107.3,0.23774]
[1770226862732,2.12428122,2107.9,2106.6,0.23781]
[1770226862933,3.21681122,2109.5,2107.2,1.09365]
[1770226863130,0.23753,2109.2,2107.1,1.09373]
[1770226863335,2.12428122,2109.6,2108.0,1.33092]
[1770226863536,2.12428122,2109.5,2108.4,0.23762]
[1770226863742,0.00397762,2109.6,2109.1,0.23754]
[1770226864039,7.74779797,2109.9,2108.5,1.33061]
[1770226864239,1e-05,2110.4,2109.1,1.09268]
[1770226864534,1e-05,2110.4,2109.5,0.27372018]
[1770226864734,7.61093895,2112.3,2110.8,1.09182]
[1770226864938,1.09116,2112.1,2110.2,0.27371804]
[1770226865137,7.61093895,2111.9,2110.3,0.2374]
[1770226865435,7.61093895,2111.9,2110.6,1.09189]
[1770226865637,7.61093895,2111.9,2110.2,0.00469927]
[1770226865941,7.61093895,2111.4,2110.2,0.00469927]
[1770226866135,7.60858931,2111.0,2108.9,1.33034]
[1770226866335,7.60858931,2110.6,2108.8,0.475]
[1770226866535,7.60858931,2110.6,2109.0,2.19113567]
[1770226866737,7.61456604,2110.4,2108.4,0.26646386]
[1770226867044,7.61456604,2110.2,2108.3,0.47430455]
[1770226867337,7.61456604,2110.0,2108.7,1.33046]
[1770226867543,7.61456604,2110.0,2108.6,1.09295]
[1770226867737,7.61456604,2110.0,2108.3,0.71702076]
[1770226868236,7.61456604,2110.0,2108.3,1.81012076]
[1770226868435,7.61456604,2110.0,2108.7,0.23758]
[1770226868843,7.61456604,2110.0,2108.3,0.47939076]
[1770226869039,0.00503784,2110.2,2108.3,0.47939076]
[1770226869040,7.59466882,2109.8,2108.3,0.47939076]
[1770226869441,7.59466882,2111.1,2110.3,1.09207]
[1770226869740,7.59466882,2111.1,2109.4,1.33002]
[1770226869939,7.59466882,2111.1,2109.0,3.17900299]
[1770226870144,7.59718774,2110.9,2109.0,0.475]
[1770226870335,7.59718774,2110.7,2109.6,1.09243]
[1770226870637,0.475,2112.2,2110.8,1.09179]
[1770226870940,7.5232383,2112.1,2110.0,0.71243]
[1770226871139,0.475,2112.0,2110.4,1.09201]
[1770226871341,1.09075,2112.9,2110.4,1.09201]
[1770226871342,0.23703,2113.7,2111.3,1.09156]
[1770226871541,7.5232383,2113.3,2110.9,1.32909]
[1770226871740,7.5232383,2113.1,2111.3,0.00583352]
[1770226872042,7.5232383,2112.9,2111.8,1.09129]
[1770226872238,7.5232383,2112.9,2111.4,0.01120701]
[1770226872543,7.29431191,2112.7,2111.3,0.00583352]
[1770226872739,7.29431191,2112.7,2111.3,1.09738352]
[1770226872939,7.29431191,2112.7,2111.3,3.21499302]
[1770226873239,7.29431191,2112.7,2111.3,0.00583352]
[1770226873442,7.76931191,2112.6,2111.3,0.00583352]
[1770226873843,7.76931191,2112.6,2110.4,2.9718695]
[1770226874138,7.29431191,2112.6,2111.1,4.06937302]
[1770226874442,7.76831191,2112.8,2111.4,2.97770302]
[1770226874643,7.76831191,2112.7,2111.4,2.97770302]
[1770226874836,7.76831191,2112.6,2111.4,0.00438286]
[1770226875238,7.29431191,2115.2,2112.8,0.23712]
[1770226875545,7.29431191,2114.1,2112.2,0.23719]
[1770226875742,7.29431191,2113.9,2112.2,2.95671605]
[1770226875943,7.29431191,2112.9,2111.4,2.96109891]
[1770226876139,8.38939295,2112.7,2111.4,0.00438286]
[1770226876446,7.29431191,2112.0,2110.0,2.95671605]
[1770226876641,7.29431191,2111.5,2110.0,2.95671605]
[1770226876942,7.29431191,2111.5,2110.1,2.88338857]
[1770226877243,7.29431191,2111.5,2110.3,4.21283857]
[1770226877445,7.76831191,2111.9,2110.6,3.12074857]
[1770226877644,7.76831191,2111.9,2110.6,4.21265857]
[1770226877840,0.474,2112.7,2111.2,3.97498857]
[1770226878043,0.474,2112.7,2111.3,0.23729]
[1770226878344,0.474,2112.7,2111.5,2.88338857]
[1770226878345,0.00423104,2112.7,2111.5,2.88338857]
[1770226878545,0.00588144,2112.9,2111.8,4.03974061]
[1770226878742,0.00588144,2112.9,2111.6,1.0914]
[1770226878743,7.29431191,2113.8,2112.8,4.03926061]
[1770226879049,6.2276687,2113.8,2113.1,3.18555061]
[1770226879244,0.474,2114.6,2112.7,4.25224382]
[1770226879442,0.00423104,2114.2,2112.7,4.01511382]
[1770226879643,0.237,2114.0,2112.7,0.00389563]
[1770226879848,0.00423104,2113.3,2111.7,4.01511382]
[1770226880045,0.474,2113.2,2111.7,4.01511382]
[1770226880550,0.474,2113.2,2111.7,4.25236382]
[1770226880846,0.474,2113.2,2111.8,4.07993043]
[1770226881050,7.29854295,2113.1,2111.8,4.07993043]
[1770226881343,7.29854295,2113.0,2111.7,0.00494101]
[1770226881744,7.29431191,2112.7,2111.7,0.00494101]
[1770226881949,7.29832859,2112.7,2111.7,0.00494101]
[1770226882146,7.29832859,2112.7,2111.9,0.23722]
[1770226882147,0.00401668,2112.7,2111.9,0.23722]
[1770226882342,0.00401668,2112.7,2112.1,4.31713043]
[1770226882548,0.474,2113.2,2112.3,4.30873962]
[1770226882751,7.29431191,2113.6,2112.3,4.30873962]
[1770226882949,7.29431191,2113.3,2111.9,4.06755294]
[1770226883145,7.29431191,2113.3,2111.7,0.00494101]
[1770226883146,7.76831191,2113.2,2111.7,0.00494101]
[1770226883349,7.29431191,2113.0,2111.7,0.00494101]
[1770226883553,7.30223015,2113.0,2111.7,0.00494101]
[1770226883753,0.0036872,2113.0,2112.3,0.23717]
[1770226883955,0.0036872,2113.0,2112.3,4.2788593]
[1770226884153,7.98193981,2113.8,2112.4,1.32815]
[1770226884352,7.98193981,2113.8,2112.4,4.2788493]
[1770226884550,4.40982,2114.7,2112.1,1.09111]
[1770226884551,7.50793981,2114.3,2113.0,5.5305659]
[1770226884850,7.50793981,2114.3,2113.2,0.23707]
[1770226885048,0.474,2114.6,2113.2,4.4398559]
[1770226885247,0.00423104,2114.1,2113.2,0.00460149]
[1770226885448,7.50793981,2114.2,2113.2,0.00460149]
[1770226885648,0.00423104,2113.9,2113.2,0.00460149]
[1770226885847,7.51217085,2113.7,2113.2,0.00460149]
[1770226886054,0.00423104,2114.0,2113.2,0.00460149]
[1770226886452,7.50793981,2114.1,2113.2,0.00460149]
[1770226886647,0.00423104,2113.4,2112.3,4.25596792]
[1770226886852,7.98193981,2113.4,2111.7,4.26056941]
[1770226887050,7.50793981,2113.2,2111.8,4.26056941]
[1770226887553,7.50793981,2112.9,2111.8,0.00474437]
[1770226887749,7.51275537,2112.9,2111.8,0.00474437]
[1770226887951,7.51217085,2112.5,2111.8,0.00474437]
[1770226888252,0.474,2112.5,2111.3,4.49785941]
[1770226888454,7.50793981,2112.8,2111.9,0.23722]
[1770226888756,0.00481556,2112.9,2112.1,0.23719]
[1770226888952,5.56e-06,2112.9,2112.6,0.23715]
[1770226889147,7.50793981,2113.6,2112.1,5.41611793]
[1770226889353,7.50793981,2113.6,2112.3,0.23718]
[1770226889654,7.50793981,2113.6,2111.7,4.09973938]
[1770226889655,7.50793981,2113.2,2111.3,5.03627793]
[1770226889856,7.50793981,2113.2,2111.3,4.56227793]
[1770226890053,7.51404054,2113.2,2111.3,0.24321345]
[1770226890453,7.75112054,2113.2,2111.3,0.24321345]
[1770226890753,7.50793981,2113.0,2111.3,0.24321345]
[1770226890952,7.74503981,2113.0,2111.3,0.24321345]
[1770226891147,7.50793981,2112.8,2111.3,0.00592345]
[1770226891456,1.09670073,2113.2,2111.3,0.00592345]
[1770226891457,7.50793981,2112.4,2111.3,0.00592345]
[1770226892660,7.50793981,2112.2,2110.9,2.73315958]
[1770226892858,7.50793981,2112.2,2110.7,2.73315958]
[1770226893057,7.50793981,2112.2,2110.8,5.88867392]
[1770226893255,7.50793981,2112.2,2111.0,2.73315958]
[1770226893555,0.71116,2112.5,2111.1,8.62600945]
[1770226893556,7.50793981,2111.9,2111.1,8.62600945]
[1770226893757,7.50793981,2112.3,2111.4,2.73315958]
[1770226894057,7.50793981,2112.3,2111.5,5.89220279]
[1770226894359,0.474,2112.5,2111.7,2.73315958]
[1770226894657,7.98193981,2112.5,2111.5,2.73315958]
[1770226894951,7.98193981,2112.5,2111.3,2.73315958]
[1770226895156,7.98193981,2112.5,2111.1,5.46631917]
[1770226895157,0.474,2112.5,2111.9,2.73315958]
[1770226895453,0.00610073,2113.2,2112.1,2.97035958]
[1770226895658,7.51404054,2113.2,2112.2,0.23719]
[1770226895856,0.00610073,2113.2,2112.4,0.23717]
[1770226896156,0.00610073,2113.2,2112.4,2.97032958]
[1770226896362,7.50793981,2114.1,2113.1,2.97024958]
[1770226896555,7.98193981,2114.3,2113.2,2.88133608]
[1770226896751,7.98193981,2114.3,2113.4,2.73315958]
[1770226897057,1.08891,2116.5,2114.2,2.79492629]
[1770226897058,7.50793981,2115.8,2114.2,2.79492629]
[1770226897359,7.51182092,2115.8,2114.4,2.79492629]
[1770226897560,7.51182092,2115.8,2114.8,2.79492629]
[1770226897852,7.51182092,2115.8,2114.7,2.79492629]
[1770226898052,7.74476981,2115.4,2114.2,0.00331192]
[1770226898252,7.50793981,2115.4,2114.2,0.00331192]
[1770226898658,7.50793981,2115.4,2114.2,2.79823821]
[1770226898961,7.50793981,2115.4,2114.3,8.81066558]
[1770226898962,7.98193981,2115.4,2114.3,8.81066558]
[1770226899160,7.50793981,2115.4,2114.2,2.79823821]
[1770226899356,7.50793981,2115.4,2113.7,0.23702]
[1770226899357,1.09003,2114.3,2113.0,18.22106386]
[1770226899659,2.05149428,2114.1,2112.8,8.93334638]
[1770226899959,0.474,2114.0,2112.1,1.32834]
[1770226900158,2.05149428,2113.8,2112.2,0.14819846]
[1770226900357,3.37890428,2113.6,2112.3,0.14819846]
[1770226900558,4.75741305,2113.5,2112.4,8.93334638]
[1770226900754,4.99447305,2113.4,2112.0,0.00572421]
[1770226900956,4.99447305,2113.4,2112.1,8.93334638]
[1770226901156,0.00485362,2113.8,2112.1,8.93334638]
[1770226901358,4.76226667,2113.8,2112.2,0.14825965]
[1770226901557,4.76226667,2113.8,2112.3,0.14825965]
[1770226901753,4.76226667,2113.8,2112.4,0.14825965]
[1770226901954,4.76226667,2113.8,2112.1,16.56176203]
[1770226902153,4.76226667,2113.8,2112.2,7.77665406]
[1770226902363,4.76226667,2113.8,2112.3,0.14823841]
[1770226902559,0.00485362,2113.8,2112.4,7.77665406]
[1770226902858,7.97052898,2115.2,2112.4,7.77665406]
[1770226902859,0.23685,2115.3,2112.8,7.62841565]
[1770226903065,5.44224119,2115.2,2113.2,7.62841565]
[1770226903264,5.44224119,2115.2,2113.4,7.62841565]
[1770226903464,5.44224119,2115.2,2113.6,7.62841565]
[1770226903660,4.96824119,2114.7,2113.3,8.93334638]
[1770226903866,4.96824119,2114.6,2113.4,0.14818141]
[1770226904064,4.96824119,2114.6,2113.3,8.93875886]
[1770226904965,0.00452622,2114.7,2113.4,7.77658507]
[1770226905160,0.00452622,2114.7,2113.5,7.77658507]
[1770226905359,0.00452622,2114.7,2113.6,0.14816942]
[1770226905559,4.97277902,2114.7,2113.7,8.93334638]
[1770226905866,4.9682528,2114.4,2113.3,0.00541248]
[1770226906162,5.2052428,2114.1,2112.6,7.62841565]
[1770226906463,5.43684032,2114.6,2112.8,7.62841565]
[1770226906659,5.0136543,2114.3,2112.9,0.14820447]
[1770226906866,5.0136543,2114.3,2113.0,7.77662012]
[1770226907159,5.0136543,2114.3,2112.2,0.23719]
[1770226907160,5.24632979,2113.7,2112.1,7.62841565]
[1770226907363,5.48230979,2113.6,2112.2,0.14823729]
[1770226907564,5.48230979,2113.6,2112.3,0.14823729]
[1770226907764,5.48230979,2113.6,2112.4,0.14823729]
[1770226907963,5.48230979,2113.6,2112.2,7.62841565]
[1770226908164,5.48230979,2113.6,2112.3,9.08159334]
[1770226908365,0.473,2113.6,2112.4,7.77666261]
[1770226908559,0.00452622,2114.7,2112.9,7.62841565]
[1770226908765,0.00452622,2114.7,2112.4,1.51822119]
[1770226908766,5.00549721,2114.7,2113.1,7.62841565]
[1770226908964,0.00452622,2114.7,2113.3,7.62841565]
[1770226909167,0.00452622,2114.7,2113.5,7.62841565]
[1770226909362,0.00452622,2114.7,2113.4,1.23864945]
[1770226909363,5.00097099,2115.5,2113.7,7.62841565]
[1770226909668,0.473,2115.0,2113.9,7.62841565]
[1770226909865,0.473,2115.4,2114.0,8.93334638]
[1770226910063,0.473,2115.4,2114.1,7.7766051]
[1770226910267,0.08231027,2115.9,2114.3,7.62841565]
[1770226910469,0.473,2115.8,2114.5,7.62841565]
[1770226910764,0.00374656,2115.9,2114.6,7.77650374]
[1770226911064,0.45,2116.4,2114.8,7.62841565]
[1770226911264,0.45,2116.4,2115.0,7.62841565]
[1770226911467,5.45031815,2116.4,2115.1,8.93334638]
[1770226911768,5.23705815,2116.3,2114.8,8.93334638]
[1770226911968,5.24264524,2116.3,2114.8,8.93334638]
[1770226912165,0.00558709,2116.3,2114.9,7.77649059]
[1770226912363,0.00558709,2116.3,2115.1,7.62841565]
[1770226912570,0.00558709,2116.3,2115.2,7.77644666]
[1770226912769,0.00558709,2116.3,2115.2,7.62841565]
[1770226913071,0.00558709,2116.3,2115.3,8.93334638]
[1770226913264,0.00558709,2116.3,2115.3,16.56176203]
[1770226913565,0.473,2116.9,2115.4,8.65716748]
[1770226913771,0.473,2116.9,2115.6,7.17568414]
[1770226913971,0.473,2116.9,2115.8,7.17568414]
[1770226914171,0.473,2116.9,2116.0,7.17568414]
[1770226914368,0.473,2117.9,2116.0,8.26481414]
[1770226914572,5.62264906,2117.9,2116.2,7.17568414]
[1770226914865,5.14964906,2117.6,2116.2,7.17568414]
[1770226915065,5.14964906,2117.6,2116.3,8.93334638]
[1770226915272,5.38623906,2117.6,2116.3,8.93334638]
[1770226915464,5.38626906,2117.3,2116.0,0.00512644]
[1770226915669,5.38626906,2117.3,2116.1,8.93334638]
[1770226915870,5.14964906,2117.5,2116.1,16.10903052]
[1770226916168,5.14964906,2117.5,2116.2,7.17568414]
[1770226916469,5.14964906,2117.5,2116.3,8.93334638]
[1770226916672,0.0035124,2117.6,2116.4,7.17568414]
[1770226916869,0.473,2118.2,2116.5,7.41238414]
[1770226917070,0.473,2118.2,2116.7,7.17568414]
[1770226917373,0.473,2118.3,2117.3,7.17568414]
[1770226917765,0.47654882,2118.3,2117.4,8.92983398]
[1770226917968,0.47654882,2118.3,2116.8,7.17568414]
[1770226918175,1.08801,2118.2,2116.8,7.17568414]
[1770226918372,0.47654882,2118.3,2116.8,9.689675]
[1770226918677,0.473,2119.2,2117.6,7.72639315]
[1770226918878,0.473,2119.2,2117.8,7.72639315]
[1770226919078,0.23642,2119.1,2117.8,7.72639315]
[1770226919278,0.23643,2119.0,2117.9,10.24038401]
[1770226919473,0.24185091,2119.0,2117.9,7.73118724]
[1770226919674,0.00542091,2119.0,2118.0,2.51399086]
[1770226919879,0.00542091,2119.0,2118.1,7.72639315]
[1770226920179,0.47842091,2119.0,2118.1,7.72639315]
[1770226920371,0.71485091,2119.0,2118.0,2.51399086]
[1770226920572,0.71485091,2119.0,2117.9,4.09e-06]
[1770226920873,1.0878,2118.6,2117.9,4.09e-06]
[1770226921080,0.23646,2118.7,2117.2,7.72639315]
[1770226921278,0.23647,2118.7,2117.4,7.72639315]
[1770226921472,0.23649,2118.5,2117.4,7.72639315]
[1770226921676,0.23652,2118.3,2117.5,2.51399495]
[1770226921874,0.23652,2118.2,2117.0,7.72639315]
[1770226922077,1.09303091,2119.0,2117.0,7.73117966]
[1770226922274,0.473,2118.9,2117.2,7.72639315]
[1770226922475,0.473,2118.9,2117.4,7.72639315]
[1770226922682,0.70944,2118.9,2117.4,7.72639315]
[1770226922980,0.473,2118.9,2117.6,7.72639315]
[1770226923382,0.473,2118.9,2117.7,2.51399495]
[1770226923681,0.473,2118.9,2117.8,7.72639315]
[1770226923880,0.00542091,2119.0,2117.8,7.72639315]
[1770226924076,0.473,2118.9,2118.0,7.72639315]
[1770226924279,0.473,2119.2,2118.0,7.72639315]
[1770226924475,1.16913822,2120.2,2118.2,7.72639315]
[1770226924476,1.08734,2119.5,2118.2,7.72639315]
[1770226924679,0.23654,2118.0,2117.0,0.00478651]
[1770226924875,0.23663,2117.3,2117.0,6.51e-06]
[1770226925177,0.23663,2117.3,2115.5,3.12523713]
[1770226925178,0.473,2117.8,2116.0,0.23676]
[1770226925377,0.473,2117.8,2116.3,0.23673]
[1770226925578,3.54848,2118.6,2116.3,0.23673]
[1770226925579,0.23652,2118.3,2116.3,0.23673]
[1770226925780,0.23653,2118.1,2116.1,3.36198713]
[1770226925985,0.24035305,2118.1,2116.1,3.36786135]
[1770226926484,0.2366,2117.5,2116.1,0.00587422]
[1770226926682,0.23662,2117.3,2116.1,7.69820164]
[1770226926881,0.473,2117.2,2116.1,7.69820164]
[1770226927475,1.08883,2116.6,2114.6,7.69232742]
[1770226927679,0.23664,2117.1,2114.8,7.69232742]
[1770226927984,7.71864118,2116.9,2114.8,7.69232742]
[1770226928379,7.71864118,2116.9,2114.8,7.69586145]
[1770226928380,7.48197118,2116.6,2114.8,7.69586145]
[1770226928585,0.00586845,2116.9,2114.8,7.69586145]
[1770226928780,0.00586845,2116.9,2115.3,1.08949]
[1770226928985,0.00586845,2116.9,2115.6,7.92913742]
[1770226929181,7.18726041,2118.3,2116.0,7.69232742]
[1770226929484,7.19312886,2118.1,2116.0,7.92908742]
[1770226929982,7.42969886,2117.8,2116.6,7.69232742]
[1770226930181,7.42969886,2117.8,2116.6,7.69575964]
[1770226930182,7.19312886,2117.8,2116.6,7.69575964]